Workbook

Sheet Sheet1
A1: 濉溪县2021年公开招聘非在编中小学教学人员入围面试递补考生名单
A2: 编号 | B2: 岗位代码 | C2: 岗位名称 | D2: 招聘单位 | E2: 姓名 | F2: 准考证号 | G2: 职测成绩 | H2: 教综客观成绩 | I2: 教综主观成绩 | J2: 总分 | K2: 笔试试合成分
A3: 1 | B3: ="101" -> 101 | C3: 语文(城区1) | D3: 小学 | E3: ="李梦瑶" -> 李梦瑶 | F3: 2022020304 | G3: 60.5 | H3: 42.8 | I3: 26 | J3: =G3+H3+I3 -> 129.3 | K3: =J3/2 -> 64.65
A4: 2 | B4: ="101" -> 101 | C4: 语文(城区1) | D4: 小学 | E4: ="李倩" -> 李倩 | F4: ="2022024102" -> 2022024102 | G4: 59.8 | H4: 38.3 | I4: 30 | J4: =G4+H4+I4 -> 128.1 | K4: =J4/2 -> 64.05
A5: 3 | B5: ="101" -> 101 | C5: 语文(城区1) | D5: 小学 | E5: ="窦晓杰" -> 窦晓杰 | F5: ="2022021918" -> 2022021918 | G5: 51.6 | H5: 48.3 | I5: 28 | J5: =G5+H5+I5 -> 127.9 | K5: 63.95
A6: 4 | B6: ="101" -> 101 | C6: 语文(城区1) | D6: 小学 | E6: ="祖慧军" -> 祖慧军 | F6: ="2022022230" -> 2022022230 | G6: 57.8 | H6: 39.9 | I6: 30 | J6: =G6+H6+I6 -> 127.7 | K6: 63.85
A7: 5 | B7: ="101" -> 101 | C7: 语文(城区1) | D7: 小学 | E7: ="郑茜茜" -> 郑茜茜 | F7: ="2022020523" -> 2022020523 | G7: 57.5 | H7: 41.7 | I7: 28 | J7: =G7+H7+I7 -> 127.2 | K7: 63.6
A8: 6 | B8: ="102" -> 102 | C8: 语文(城区2) | D8: 小学 | E8: ="李自征" -> 李自征 | F8: ="2022021408" -> 2022021408 | G8: 54.5 | H8: 40.5 | I8: 28 | J8: =G8+H8+I8 -> 123 | K8: 61.5
A9: 7 | B9: ="102" -> 102 | C9: 语文(城区2) | D9: 小学 | E9: ="张浩书" -> 张浩书 | F9: ="2022021212" -> 2022021212 | G9: 60.3 | H9: 35.4 | I9: 27 | J9: =G9+H9+I9 -> 122.7 | K9: 61.35
A10: 8 | B10: ="105" -> 105 | C10: 数学(城区) | D10: 小学 | E10: ="刘穗穗" -> 刘穗穗 | F10: ="2022020110" -> 2022020110 | G10: 68.6 | H10: 31.1 | I10: 28 | J10: =G10+H10+I10 -> 127.7 | K10: 63.85
A11: 9 | B11: ="105" -> 105 | C11: 数学(城区) | D11: 小学 | E11: ="杜萍" -> 杜萍 | F11: ="2022021805" -> 2022021805 | G11: 59.8 | H11: 40.8 | I11: 27 | J11: =G11+H11+I11 -> 127.6 | K11: 63.8
A12: 10 | B12: ="105" -> 105 | C12: 数学(城区) | D12: 小学 | E12: ="吴诗雨" -> 吴诗雨 | F12: ="2022022302" -> 2022022302 | G12: 59.3 | H12: 40.2 | I12: 28 | J12: =G12+H12+I12 -> 127.5 | K12: 63.75
A13: 11 | B13: ="105" -> 105 | C13: 数学(城区) | D13: 小学 | E13: ="张嫣然" -> 张嫣然 | F13: ="2022021321" -> 2022021321 | G13: 60.9 | H13: 38.6 | I13: 28 | J13: =G13+H13+I13 -> 127.5 | K13: 63.75
A14: 12 | B14: ="105" -> 105 | C14: 数学(城区) | D14: 小学 | E14: ="陈文静" -> 陈文静 | F14: ="2022020608" -> 2022020608 | G14: 61.3 | H14: 35.9 | I14: 30 | J14: =G14+H14+I14 -> 127.2 | K14: 63.6
A15: 13 | B15: ="106" -> 106 | C15: 数学(乡村) | D15: 小学 | E15: ="李乾坤" -> 李乾坤 | F15: ="2022023315" -> 2022023315 | G15: 62.4 | H15: 31.3 | I15: 28 | J15: =G15+H15+I15 -> 121.7 | K15: 60.85
A16: 14 | B16: ="106" -> 106 | C16: 数学(乡村) | D16: 小学 | E16: ="韩娇" -> 韩娇 | F16: ="2022023129" -> 2022023129 | G16: 57.8 | H16: 33.6 | I16: 30 | J16: =G16+H16+I16 -> 121.4 | K16: 60.7
A17: 15 | B17: ="106" -> 106 | C17: 数学(乡村) | D17: 小学 | E17: ="孟祥玉" -> 孟祥玉 | F17: ="2022021419" -> 2022021419 | G17: 57.7 | H17: 35.3 | I17: 28 | J17: =G17+H17+I17 -> 121 | K17: 60.5
A18: 16 | B18: ="106" -> 106 | C18: 数学(乡村) | D18: 小学 | E18: ="徐秀芳" -> 徐秀芳 | F18: ="2022022915" -> 2022022915 | G18: 56.4 | H18: 34.4 | I18: 30 | J18: =G18+H18+I18 -> 120.8 | K18: 60.4
A19: 17 | B19: ="110" -> 110 | C19: 美术 | D19: 小学 | E19: ="张智翔" -> 张智翔 | F19: ="2022022820" -> 2022022820 | G19: 62.7 | H19: 36.6 | I19: 27 | J19: =G19+H19+I19 -> 126.3 | K19: 63.15
A20: 18 | B20: ="203" -> 203 | C20: 英语 | D20: 初中 | E20: ="吴玉苗" -> 吴玉苗 | F20: ="2022023528" -> 2022023528 | G20: 57.8 | H20: 41.9 | I20: 29 | J20: =G20+H20+I20 -> 128.7 | K20: 64.35

Sheet Sheet2

Sheet Sheet3
